[Event "Early-Titled-Tuesday-Blitz-February-20-2024"]
[Site "Chess.com"]
[Date "2024.02.20"]
[Round "3"]
[White "ClaudiaSof"]
[Black "mortngabriel"]
[Result "0-1"]
[WhiteElo "2328"]
[BlackElo "2530"]
[TimeControl "180+1"]
[EndTime "8:28:10 PST"]
[Termination "mortngabriel won on time"]

1. e4 {[%clk 0:03:00.9]} 1... c5 {[%clk 0:02:59.5]} 2. Nf3 {[%clk 0:03:00.6]}
2... Nc6 {[%clk 0:02:59.1]} 3. Bb5 {[%clk 0:03:00.1]} 3... Nf6 {[%clk
0:02:53.7]} 4. Qe2 {[%clk 0:02:53.6]} 4... Qc7 {[%clk 0:02:46.9]} 5. Nc3 {[%clk
0:02:51.5]} 5... Nd4 {[%clk 0:02:35.5]} 6. Nxd4 {[%clk 0:02:49.3]} 6... cxd4
{[%clk 0:02:36.4]} 7. Nd5 {[%clk 0:02:36.9]} 7... Nxd5 {[%clk 0:02:35.8]} 8.
exd5 {[%clk 0:02:37.2]} 8... Qxc2 {[%clk 0:02:28.9]} 9. O-O {[%clk 0:02:36.9]}
9... Qc5 {[%clk 0:02:15.5]} 10. Bc4 {[%clk 0:02:25.4]} 10... b5 {[%clk 0:01:59]}
11. Bb3 {[%clk 0:01:57.5]} 11... Bb7 {[%clk 0:01:56]} 12. Qf3 {[%clk 0:01:53]}
12... g6 {[%clk 0:01:48.7]} 13. d3 {[%clk 0:01:51.4]} 13... Bg7 {[%clk
0:01:48.1]} 14. Bg5 {[%clk 0:01:46.5]} 14... O-O {[%clk 0:01:40.5]} 15. Rac1
{[%clk 0:01:45.4]} 15... Qd6 {[%clk 0:01:40.2]} 16. Bf4 {[%clk 0:01:34]} 16...
Be5 {[%clk 0:01:37.7]} 17. Bxe5 {[%clk 0:01:29.7]} 17... Qxe5 {[%clk 0:01:38.6]}
18. Rfe1 {[%clk 0:01:28.1]} 18... Qd6 {[%clk 0:01:36.2]} 19. Qe4 {[%clk
0:01:24.1]} 19... e6 {[%clk 0:01:28.6]} 20. Qxd4 {[%clk 0:01:23.9]} 20... a5
{[%clk 0:01:26.3]} 21. a3 {[%clk 0:01:20]} 21... Rac8 {[%clk 0:01:21.5]} 22. h3
{[%clk 0:01:16.9]} 22... e5 {[%clk 0:01:01.9]} 23. Qe4 {[%clk 0:00:57]} 23... f5
{[%clk 0:00:58.8]} 24. Qf3 {[%clk 0:00:56.5]} 24... a4 {[%clk 0:00:51.6]} 25.
Ba2 {[%clk 0:00:55.8]} 25... Rxc1 {[%clk 0:00:41.6]} 26. Rxc1 {[%clk 0:00:55]}
26... Rc8 {[%clk 0:00:40.6]} 27. Rxc8+ {[%clk 0:00:43.5]} 27... Bxc8 {[%clk
0:00:40.5]} 28. Qe3 {[%clk 0:00:19.1]} 28... Bb7 {[%clk 0:00:40.1]} 29. Qf3
{[%clk 0:00:11.9]} 29... Kg7 {[%clk 0:00:39.6]} 30. h4 {[%clk 0:00:10.9]} 30...
Qc5 {[%clk 0:00:38.3]} 31. Kh2 {[%clk 0:00:03.1]} 31... Qd4 {[%clk 0:00:37.1]}
32. Qg3 {[%clk 0:00:02.5]} 32... Qxb2 {[%clk 0:00:36.1]} 0-1

[Event "Early-Titled-Tuesday-Blitz-February-20-2024"]
[Site "Chess.com"]
[Date "2024.02.20"]
[Round "3"]
[White "patzersame"]
[Black "santosalberto1987"]
[Result "1-0"]
[WhiteElo "2392"]
[BlackElo "2583"]
[TimeControl "180+1"]
[EndTime "8:28:11 PST"]
[Termination "patzersame won by resignation"]

1. e4 {[%clk 0:03:00.9]} 1... e6 {[%clk 0:02:32]} 2. d4 {[%clk 0:03:00.7]} 2...
d5 {[%clk 0:02:32.3]} 3. e5 {[%clk 0:03:01.3]} 3... c5 {[%clk 0:02:32.5]} 4. Qg4
{[%clk 0:03:01.8]} 4... cxd4 {[%clk 0:02:31.5]} 5. Nf3 {[%clk 0:03:02.4]} 5...
Nc6 {[%clk 0:02:31.7]} 6. Bd3 {[%clk 0:03:02.7]} 6... Nge7 {[%clk 0:02:25.4]} 7.
O-O {[%clk 0:03:02.7]} 7... Ng6 {[%clk 0:02:24.6]} 8. Re1 {[%clk 0:03:00.8]}
8... Nb4 {[%clk 0:02:22.8]} 9. h4 {[%clk 0:02:55.9]} 9... Nxd3 {[%clk
0:02:22.7]} 10. cxd3 {[%clk 0:02:56.8]} 10... Ne7 {[%clk 0:02:21.5]} 11. Nxd4
{[%clk 0:02:53.9]} 11... Nc6 {[%clk 0:02:21.5]} 12. Nxc6 {[%clk 0:02:53.9]}
12... bxc6 {[%clk 0:02:21.5]} 13. d4 {[%clk 0:02:54.1]} 13... h5 {[%clk
0:02:17.2]} 14. Qg3 {[%clk 0:02:54]} 14... g6 {[%clk 0:02:17.1]} 15. Bg5 {[%clk
0:02:53.6]} 15... Be7 {[%clk 0:02:16]} 16. Bxe7 {[%clk 0:02:53.9]} 16... Qxe7
{[%clk 0:02:16.9]} 17. Nc3 {[%clk 0:02:54.8]} 17... c5 {[%clk 0:02:16.3]} 18.
dxc5 {[%clk 0:02:45.1]} 18... Qxc5 {[%clk 0:02:17.2]} 19. Rac1 {[%clk
0:02:45.7]} 19... Qe7 {[%clk 0:02:15]} 20. f4 {[%clk 0:02:24.4]} 20... Bb7
{[%clk 0:02:01.6]} 21. Nb5 {[%clk 0:02:13.7]} 21... Rb8 {[%clk 0:01:47.2]} 22.
Rc7 {[%clk 0:02:03.9]} 22... Qb4 {[%clk 0:01:40.7]} 23. Nd6+ {[%clk 0:01:59.8]}
23... Kd8 {[%clk 0:01:40.9]} 24. Rec1 {[%clk 0:01:52.6]} 24... Qb6+ {[%clk
0:01:35.1]} 25. Kh2 {[%clk 0:01:47.2]} 25... Qxc7 {[%clk 0:01:35.1]} 26. Rxc7
{[%clk 0:01:38.9]} 26... Kxc7 {[%clk 0:01:36]} 27. Nxf7 {[%clk 0:01:09.7]} 27...
Rhg8 {[%clk 0:01:30.7]} 28. Qa3 {[%clk 0:01:08.5]} 28... Bc6 {[%clk 0:01:30.5]}
29. Qxa7+ {[%clk 0:01:05.9]} 29... Rb7 {[%clk 0:01:30.5]} 30. Qa5+ {[%clk
0:01:04.7]} 30... Kb8 {[%clk 0:01:30.6]} 31. Nd6 {[%clk 0:00:45.6]} 31... Rxb2
{[%clk 0:01:29.7]} 32. Qa6 {[%clk 0:00:43.5]} 32... Ba8 {[%clk 0:01:21]} 33. Nb5
{[%clk 0:00:40.2]} 33... Rg7 {[%clk 0:01:11.8]} 34. Qb6+ {[%clk 0:00:31.9]}
34... Bb7 {[%clk 0:01:05.1]} 35. a4 {[%clk 0:00:26.6]} 35... d4 {[%clk
0:01:03.6]} 36. Qa7+ {[%clk 0:00:20.3]} 36... Kc8 {[%clk 0:01:03.3]} 37. Qc5+
{[%clk 0:00:21.2]} 37... Kd8 {[%clk 0:00:43.6]} 38. Qf8+ {[%clk 0:00:21.2]}
38... Kd7 {[%clk 0:00:40.4]} 39. Qxg7+ {[%clk 0:00:22.1]} 39... Kc6 {[%clk
0:00:40.1]} 40. Qc7+ {[%clk 0:00:21.5]} 1-0

[Event "Early-Titled-Tuesday-Blitz-February-20-2024"]
[Site "Chess.com"]
[Date "2024.02.20"]
[Round "3"]
[White "Kapitan_Bayan"]
[Black "yuriydovzik"]
[Result "0-1"]
[WhiteElo "2351"]
[BlackElo "2136"]
[TimeControl "180+1"]
[EndTime "8:28:12 PST"]
[Termination "yuriydovzik won by resignation"]

1. e4 {[%clk 0:03:00.9]} 1... c6 {[%clk 0:02:56.2]} 2. d4 {[%clk 0:03:01]} 2...
Na6 {[%clk 0:02:53.2]} 3. h3 {[%clk 0:02:50.5]} 3... g6 {[%clk 0:02:47.5]} 4.
Bxa6 {[%clk 0:02:43.1]} 4... Qa5+ {[%clk 0:02:45.8]} 5. Bd2 {[%clk 0:02:37.1]}
5... Qxa6 {[%clk 0:02:45.1]} 6. Nf3 {[%clk 0:02:34.3]} 6... Bg7 {[%clk
0:02:40.3]} 7. Qe2 {[%clk 0:02:29.8]} 7... Qxe2+ {[%clk 0:02:32.3]} 8. Kxe2
{[%clk 0:02:29.5]} 8... b6 {[%clk 0:02:30.3]} 9. Nc3 {[%clk 0:02:24.8]} 9...
Ba6+ {[%clk 0:02:26.2]} 10. Ke1 {[%clk 0:02:12.8]} 10... d6 {[%clk 0:02:17.7]}
11. Rd1 {[%clk 0:02:11.9]} 11... Nf6 {[%clk 0:02:15.3]} 12. e5 {[%clk
0:02:08.9]} 12... dxe5 {[%clk 0:01:45]} 13. dxe5 {[%clk 0:02:08.8]} 13... Nd7
{[%clk 0:01:43.3]} 14. Bf4 {[%clk 0:02:04.4]} 14... Nc5 {[%clk 0:01:34.2]} 15.
Nd4 {[%clk 0:01:58.2]} 15... Rc8 {[%clk 0:01:26.8]} 16. b4 {[%clk 0:01:54]}
16... Ne6 {[%clk 0:01:20.3]} 17. Nxe6 {[%clk 0:01:53.2]} 17... fxe6 {[%clk
0:01:19.9]} 18. a4 {[%clk 0:01:34.5]} 18... O-O {[%clk 0:01:15.6]} 19. Bg3
{[%clk 0:01:27]} 19... Rfd8 {[%clk 0:01:09.7]} 20. f4 {[%clk 0:01:16.5]} 20...
c5 {[%clk 0:00:53.1]} 21. b5 {[%clk 0:01:11.3]} 21... Bb7 {[%clk 0:00:52]} 22.
Kf2 {[%clk 0:01:06.7]} 22... Rd4 {[%clk 0:00:50.4]} 23. Rhg1 {[%clk 0:00:40.7]}
23... g5 {[%clk 0:00:49.4]} 24. fxg5 {[%clk 0:00:35.5]} 24... Rf8+ {[%clk
0:00:41.6]} 25. Ke3 {[%clk 0:00:35.1]} 25... Rfd8 {[%clk 0:00:31.7]} 26. h4
{[%clk 0:00:20.7]} 26... h5 {[%clk 0:00:25.3]} 27. Bf4 {[%clk 0:00:13.7]} 27...
Kf7 {[%clk 0:00:20.6]} 28. g3 {[%clk 0:00:13.7]} 28... Kg6 {[%clk 0:00:20.4]}
29. Rxd4 {[%clk 0:00:13]} 29... cxd4+ {[%clk 0:00:19.1]} 30. Kf2 {[%clk
0:00:12.8]} 30... dxc3 {[%clk 0:00:19]} 0-1

[Event "Early-Titled-Tuesday-Blitz-February-20-2024"]
[Site "Chess.com"]
[Date "2024.02.20"]
[Round "3"]
[White "ukchessbomber"]
[Black "Zohid6"]
[Result "0-1"]
[WhiteElo "2605"]
[BlackElo "2869"]
[TimeControl "180+1"]
[EndTime "8:28:15 PST"]
[Termination "Zohid6 won on time"]

1. c4 {[%clk 0:02:59.4]} 1... e5 {[%clk 0:02:59.5]} 2. b3 {[%clk 0:02:58]} 2...
Nc6 {[%clk 0:02:58.9]} 3. Bb2 {[%clk 0:02:57]} 3... Nf6 {[%clk 0:02:59]} 4. e3
{[%clk 0:02:56.2]} 4... Bc5 {[%clk 0:02:49.4]} 5. Nc3 {[%clk 0:02:54.7]} 5...
O-O {[%clk 0:02:49]} 6. Nf3 {[%clk 0:02:52.2]} 6... d6 {[%clk 0:02:48.5]} 7. Be2
{[%clk 0:02:48.9]} 7... Re8 {[%clk 0:02:47.4]} 8. d4 {[%clk 0:02:46.2]} 8...
exd4 {[%clk 0:02:41.7]} 9. exd4 {[%clk 0:02:45.3]} 9... Bb4 {[%clk 0:02:42]} 10.
O-O {[%clk 0:02:45.4]} 10... Bg4 {[%clk 0:02:37.9]} 11. h3 {[%clk 0:02:42.4]}
11... Bh5 {[%clk 0:02:37.5]} 12. a3 {[%clk 0:02:42.1]} 12... Bxc3 {[%clk
0:02:37.5]} 13. Bxc3 {[%clk 0:02:43]} 13... Ne4 {[%clk 0:02:36.7]} 14. Bb2
{[%clk 0:02:43.2]} 14... Ng5 {[%clk 0:02:31.6]} 15. Re1 {[%clk 0:02:39.3]} 15...
Nxf3+ {[%clk 0:02:29.9]} 16. Bxf3 {[%clk 0:02:39.4]} 16... Rxe1+ {[%clk
0:02:30]} 17. Qxe1 {[%clk 0:02:40.1]} 17... Bxf3 {[%clk 0:02:30.5]} 18. gxf3
{[%clk 0:02:41]} 18... Qg5+ {[%clk 0:02:30.2]} 19. Kf1 {[%clk 0:01:37.1]} 19...
Qf5 {[%clk 0:02:27.7]} 20. Kg2 {[%clk 0:01:32.4]} 20... Qg5+ {[%clk 0:02:10.9]}
21. Kf1 {[%clk 0:01:31.6]} 21... Qh4 {[%clk 0:02:11.3]} 22. Qe4 {[%clk
0:01:31.7]} 22... Qxh3+ {[%clk 0:02:10.8]} 23. Ke2 {[%clk 0:01:31.6]} 23... Qd7
{[%clk 0:02:09.7]} 24. Kd2 {[%clk 0:01:29.7]} 24... Re8 {[%clk 0:02:09.1]} 25.
Qd3 {[%clk 0:01:23]} 25... d5 {[%clk 0:02:05.5]} 26. Rh1 {[%clk 0:01:10.1]}
26... h6 {[%clk 0:01:58.3]} 27. Rh5 {[%clk 0:01:09.5]} 27... Ne7 {[%clk
0:01:56.4]} 28. Kc2 {[%clk 0:01:03.2]} 28... c6 {[%clk 0:01:50.6]} 29. Bc1
{[%clk 0:01:03]} 29... Ng6 {[%clk 0:01:49]} 30. Bd2 {[%clk 0:00:51.1]} 30... Rd8
{[%clk 0:01:28.7]} 31. Be3 {[%clk 0:00:50]} 31... Qe7 {[%clk 0:01:26.8]} 32. Kb2
{[%clk 0:00:39.3]} 32... dxc4 {[%clk 0:01:17.6]} 33. bxc4 {[%clk 0:00:39.5]}
33... Qe6 {[%clk 0:01:10.4]} 34. d5 {[%clk 0:00:20.7]} 34... cxd5 {[%clk
0:01:03.1]} 35. Rxd5 {[%clk 0:00:20.5]} 35... Rc8 {[%clk 0:01:00.9]} 36. Bxa7
{[%clk 0:00:16.4]} 36... Ne5 {[%clk 0:00:54.8]} 37. Rd8+ {[%clk 0:00:11.7]}
37... Rxd8 {[%clk 0:00:55]} 38. Qxd8+ {[%clk 0:00:12.6]} 38... Kh7 {[%clk
0:00:55.9]} 39. c5 {[%clk 0:00:07.4]} 39... Qc4 {[%clk 0:00:55.7]} 0-1

[Event "Early-Titled-Tuesday-Blitz-February-20-2024"]
[Site "Chess.com"]
[Date "2024.02.20"]
[Round "3"]
[White "noblerone"]
[Black "agvania123"]
[Result "0-1"]
[WhiteElo "2530"]
[BlackElo "2409"]
[TimeControl "180+1"]
[EndTime "8:28:18 PST"]
[Termination "agvania123 won by resignation"]

1. d4 {[%clk 0:02:54.1]} 1... Nf6 {[%clk 0:02:58.2]} 2. c4 {[%clk 0:02:52.4]}
2... g6 {[%clk 0:02:57.8]} 3. Nc3 {[%clk 0:02:52.8]} 3... d5 {[%clk 0:02:55.4]}
4. Nf3 {[%clk 0:02:50.3]} 4... Bg7 {[%clk 0:02:55.4]} 5. Bg5 {[%clk 0:02:50.7]}
5... c6 {[%clk 0:02:54]} 6. e3 {[%clk 0:02:49.1]} 6... O-O {[%clk 0:02:53.2]} 7.
Bxf6 {[%clk 0:02:29.5]} 7... Bxf6 {[%clk 0:02:52.8]} 8. cxd5 {[%clk 0:02:30.4]}
8... cxd5 {[%clk 0:02:51.4]} 9. Qb3 {[%clk 0:02:31.3]} 9... e6 {[%clk
0:02:49.8]} 10. h4 {[%clk 0:02:25.4]} 10... h5 {[%clk 0:02:47]} 11. Bd3 {[%clk
0:02:23.6]} 11... b6 {[%clk 0:02:38.2]} 12. Qc2 {[%clk 0:02:17]} 12... Qe7
{[%clk 0:02:32.8]} 13. Bxg6 {[%clk 0:01:47.2]} 13... fxg6 {[%clk 0:02:30.7]} 14.
Qxg6+ {[%clk 0:01:48.1]} 14... Qg7 {[%clk 0:02:29.5]} 15. Qxh5 {[%clk
0:01:46.1]} 15... Nc6 {[%clk 0:02:19.8]} 16. Rh3 {[%clk 0:01:40.8]} 16... Qh7
{[%clk 0:02:02.4]} 17. Qg4+ {[%clk 0:01:29.9]} 17... Kh8 {[%clk 0:01:58.3]} 18.
Ng5 {[%clk 0:01:29.6]} 18... e5 {[%clk 0:01:52.8]} 19. Nxh7 {[%clk 0:00:38.2]}
19... Bxg4 {[%clk 0:01:50.6]} 20. Nxf8 {[%clk 0:00:34.7]} 20... Bxh3 {[%clk
0:01:50]} 21. Ng6+ {[%clk 0:00:33]} 21... Kg7 {[%clk 0:01:49.8]} 22. Nxe5 {[%clk
0:00:23.9]} 22... Bxe5 {[%clk 0:01:38.3]} 23. dxe5 {[%clk 0:00:23.1]} 23... Be6
{[%clk 0:01:36.3]} 24. f4 {[%clk 0:00:20.6]} 24... d4 {[%clk 0:01:34.3]} 25.
exd4 {[%clk 0:00:19.9]} 25... Nxd4 {[%clk 0:01:35.2]} 26. O-O-O {[%clk
0:00:19.2]} 26... Rd8 {[%clk 0:01:25.7]} 27. g3 {[%clk 0:00:19]} 27... b5 {[%clk
0:01:14.7]} 28. a3 {[%clk 0:00:18.9]} 28... a5 {[%clk 0:01:14.2]} 29. Rd3 {[%clk
0:00:15.7]} 29... Nb3+ {[%clk 0:01:05.6]} 30. Kc2 {[%clk 0:00:16]} 30... Bf5
{[%clk 0:01:05.5]} 31. Kxb3 {[%clk 0:00:16.4]} 31... Bxd3 {[%clk 0:01:04.2]} 32.
g4 {[%clk 0:00:15.5]} 32... Bc4+ {[%clk 0:01:03.8]} 33. Kc2 {[%clk 0:00:15.6]}
33... b4 {[%clk 0:01:03.4]} 34. axb4 {[%clk 0:00:15.1]} 34... axb4 {[%clk
0:01:04.3]} 35. Na4 {[%clk 0:00:14.4]} 35... Rd4 {[%clk 0:00:55.8]} 36. Nc5
{[%clk 0:00:12.9]} 36... Rxf4 {[%clk 0:00:53.4]} 37. b3 {[%clk 0:00:13.8]} 37...
Bf7 {[%clk 0:00:48.6]} 38. e6 {[%clk 0:00:13.4]} 38... Bg6+ {[%clk 0:00:47.1]}
39. Kd2 {[%clk 0:00:14.3]} 39... Rxg4 {[%clk 0:00:46.4]} 40. Ke3 {[%clk
0:00:14.6]} 40... Rxh4 {[%clk 0:00:46.2]} 41. e7 {[%clk 0:00:14.1]} 41... Rh3+
{[%clk 0:00:45.4]} 42. Kd4 {[%clk 0:00:14.1]} 42... Kf6 {[%clk 0:00:43.7]} 0-1

[Event "Early-Titled-Tuesday-Blitz-February-20-2024"]
[Site "Chess.com"]
[Date "2024.02.20"]
[Round "3"]
[White "karinachess1"]
[Black "AnishOnYoutube"]
[Result "0-1"]
[WhiteElo "2673"]
[BlackElo "3005"]
[TimeControl "180+1"]
[EndTime "8:28:19 PST"]
[Termination "AnishOnYoutube won by resignation"]

1. d4 {[%clk 0:03:00.9]} 1... Nf6 {[%clk 0:02:59.8]} 2. c4 {[%clk 0:03:01.2]}
2... e6 {[%clk 0:02:58.2]} 3. Nc3 {[%clk 0:03:01.1]} 3... Bb4 {[%clk 0:02:58.3]}
4. a3 {[%clk 0:03:01.2]} 4... Bxc3+ {[%clk 0:02:58.2]} 5. bxc3 {[%clk
0:03:02.1]} 5... b6 {[%clk 0:02:55.1]} 6. f3 {[%clk 0:02:57.5]} 6... Nc6 {[%clk
0:02:52.7]} 7. e4 {[%clk 0:02:57.2]} 7... d6 {[%clk 0:02:51.1]} 8. Bd3 {[%clk
0:02:53.7]} 8... Na5 {[%clk 0:02:50.6]} 9. Ne2 {[%clk 0:02:46.2]} 9... Ba6
{[%clk 0:02:50.7]} 10. Ng3 {[%clk 0:02:46.6]} 10... Qe7 {[%clk 0:02:33.2]} 11.
O-O {[%clk 0:02:38.7]} 11... O-O-O {[%clk 0:02:29.7]} 12. Qe2 {[%clk 0:02:32.7]}
12... Nd7 {[%clk 0:02:17.7]} 13. Be3 {[%clk 0:02:08.9]} 13... h5 {[%clk
0:02:17.5]} 14. Rfb1 {[%clk 0:02:00.8]} 14... g5 {[%clk 0:02:15.8]} 15. c5
{[%clk 0:01:54.4]} 15... Bxd3 {[%clk 0:02:14.3]} 16. Qxd3 {[%clk 0:01:55.3]}
16... dxc5 {[%clk 0:02:14.7]} 17. Qa6+ {[%clk 0:01:54.9]} 17... Nb7 {[%clk
0:02:09.8]} 18. Qxa7 {[%clk 0:01:48.8]} 18... h4 {[%clk 0:02:04.4]} 19. Nf1
{[%clk 0:01:39.4]} 19... h3 {[%clk 0:02:04.8]} 20. g3 {[%clk 0:01:24]} 20... f5
{[%clk 0:01:50.5]} 21. e5 {[%clk 0:00:56.7]} 21... f4 {[%clk 0:01:49.8]} 22. Bf2
{[%clk 0:00:51.5]} 22... fxg3 {[%clk 0:01:49.8]} 23. Bxg3 {[%clk 0:00:49.8]}
23... Nb8 {[%clk 0:01:33.2]} 24. a4 {[%clk 0:00:30]} 24... cxd4 {[%clk
0:01:09.2]} 25. cxd4 {[%clk 0:00:29.9]} 25... Qd7 {[%clk 0:00:36.6]} 26. a5
{[%clk 0:00:14.1]} 26... Qxd4+ {[%clk 0:00:34.2]} 27. Bf2 {[%clk 0:00:13.8]}
27... Qd5 {[%clk 0:00:34.6]} 28. Ra3 {[%clk 0:00:13.7]} 28... Nxa5 {[%clk
0:00:31.7]} 29. Rc1 {[%clk 0:00:11]} 29... Nac6 {[%clk 0:00:30.8]} 30. Qa8
{[%clk 0:00:10.5]} 30... Rhf8 {[%clk 0:00:26.7]} 31. Rac3 {[%clk 0:00:10.6]}
31... Rxf3 {[%clk 0:00:26.7]} 32. Qxb8+ {[%clk 0:00:07.8]} 32... Kxb8 {[%clk
0:00:24.8]} 0-1

[Event "Early-Titled-Tuesday-Blitz-February-20-2024"]
[Site "Chess.com"]
[Date "2024.02.20"]
[Round "3"]
[White "FoxOnTheRun97"]
[Black "ARMQUEEN"]
[Result "0-1"]
[WhiteElo "2664"]
[BlackElo "2489"]
[TimeControl "180+1"]
[EndTime "8:28:19 PST"]
[Termination "ARMQUEEN won by resignation"]

1. d4 {[%clk 0:02:57.8]} 1... Nf6 {[%clk 0:02:59.5]} 2. Bg5 {[%clk 0:02:56.7]}
2... d5 {[%clk 0:02:58.7]} 3. Bxf6 {[%clk 0:02:56.3]} 3... exf6 {[%clk
0:02:59.1]} 4. e3 {[%clk 0:02:54.1]} 4... Bd6 {[%clk 0:02:59.3]} 5. g3 {[%clk
0:02:53.5]} 5... O-O {[%clk 0:02:57.9]} 6. Bg2 {[%clk 0:02:54.1]} 6... c6 {[%clk
0:02:58.6]} 7. Ne2 {[%clk 0:02:54.7]} 7... Nd7 {[%clk 0:02:58.3]} 8. O-O {[%clk
0:02:55.2]} 8... f5 {[%clk 0:02:58.8]} 9. c4 {[%clk 0:02:49.5]} 9... dxc4 {[%clk
0:02:58.8]} 10. Nd2 {[%clk 0:02:49.1]} 10... Nf6 {[%clk 0:02:57.3]} 11. Nxc4
{[%clk 0:02:48.7]} 11... Bc7 {[%clk 0:02:58]} 12. b4 {[%clk 0:02:46.8]} 12... a6
{[%clk 0:02:55.3]} 13. a3 {[%clk 0:02:45.9]} 13... h5 {[%clk 0:02:52.2]} 14. h4
{[%clk 0:02:43.5]} 14... g6 {[%clk 0:02:43.8]} 15. Qc2 {[%clk 0:02:36.5]} 15...
Kg7 {[%clk 0:02:43.9]} 16. Rfd1 {[%clk 0:02:34.1]} 16... Re8 {[%clk 0:02:42.9]}
17. Nc3 {[%clk 0:02:23]} 17... Ng4 {[%clk 0:02:40.9]} 18. d5 {[%clk 0:02:20]}
18... cxd5 {[%clk 0:02:23.9]} 19. Nxd5 {[%clk 0:02:17.6]} 19... Be6 {[%clk
0:02:18.3]} 20. Qb2+ {[%clk 0:01:57.7]} 20... Kh6 {[%clk 0:02:09.8]} 21. Ndb6
{[%clk 0:01:49]} 21... Qe7 {[%clk 0:02:03.2]} 22. Nxa8 {[%clk 0:01:47.6]} 22...
Bxg3 {[%clk 0:01:48.5]} 23. fxg3 {[%clk 0:01:24.4]} 23... Bxc4 {[%clk
0:01:47.5]} 24. Qc3 {[%clk 0:01:16.8]} 24... Rxa8 {[%clk 0:01:46.6]} 25. e4
{[%clk 0:01:11.5]} 25... Be6 {[%clk 0:01:38]} 26. Qc5 {[%clk 0:01:07.5]} 26...
Qf6 {[%clk 0:01:35]} 27. Re1 {[%clk 0:00:31]} 27... f4 {[%clk 0:01:32]} 28. Qg5+
{[%clk 0:00:28.8]} 28... Qxg5 {[%clk 0:01:31.5]} 29. hxg5+ {[%clk 0:00:29.7]}
29... Kxg5 {[%clk 0:01:32.1]} 30. gxf4+ {[%clk 0:00:29.8]} 30... Kxf4 {[%clk
0:01:32.7]} 31. Rf1+ {[%clk 0:00:30.4]} 31... Kg5 {[%clk 0:01:32.7]} 32. Rac1
{[%clk 0:00:28.6]} 32... Rd8 {[%clk 0:01:26.6]} 33. Rc5+ {[%clk 0:00:28.2]}
33... Kh6 {[%clk 0:01:24.7]} 34. e5 {[%clk 0:00:26.9]} 34... Ne3 {[%clk
0:01:22.7]} 35. Re1 {[%clk 0:00:21.1]} 35... Nxg2 {[%clk 0:01:17.7]} 36. Kxg2
{[%clk 0:00:22]} 36... h4 {[%clk 0:01:17.5]} 37. Re2 {[%clk 0:00:18.9]} 37... g5
{[%clk 0:01:15.5]} 38. a4 {[%clk 0:00:17.3]} 38... g4 {[%clk 0:01:15.1]} 39. b5
{[%clk 0:00:17.1]} 39... axb5 {[%clk 0:01:14.6]} 40. axb5 {[%clk 0:00:18]} 40...
h3+ {[%clk 0:01:12.8]} 41. Kh2 {[%clk 0:00:17]} 41... Rd3 {[%clk 0:01:12.9]} 42.
Rc1 {[%clk 0:00:13.1]} 42... g3+ {[%clk 0:01:12.4]} 43. Kg1 {[%clk 0:00:13.2]}
43... h2+ {[%clk 0:01:09.9]} 44. Kg2 {[%clk 0:00:11.1]} 44... Bd5+ {[%clk
0:01:09.1]} 45. Kh3 {[%clk 0:00:11]} 45... h1=Q+ {[%clk 0:01:07.1]} 46. Rxh1
{[%clk 0:00:10.4]} 46... g2+ {[%clk 0:01:03.9]} 47. Kg4+ {[%clk 0:00:04.6]}
47... gxh1=Q {[%clk 0:01:02.7]} 0-1

[Event "Early-Titled-Tuesday-Blitz-February-20-2024"]
[Site "Chess.com"]
[Date "2024.02.20"]
[Round "3"]
[White "davigator"]
[Black "zurzan"]
[Result "1-0"]
[WhiteElo "2351"]
[BlackElo "2053"]
[TimeControl "180+1"]
[EndTime "8:28:20 PST"]
[Termination "davigator won on time"]

1. e4 {[%clk 0:03:00.9]} 1... c5 {[%clk 0:02:58.8]} 2. Nf3 {[%clk 0:03:00.2]}
2... g6 {[%clk 0:02:58.9]} 3. d4 {[%clk 0:02:58.7]} 3... cxd4 {[%clk 0:02:59]}
4. Qxd4 {[%clk 0:02:59]} 4... Nf6 {[%clk 0:02:58.2]} 5. Bb5 {[%clk 0:02:59.3]}
5... a6 {[%clk 0:02:49.7]} 6. Ba4 {[%clk 0:02:59.2]} 6... b5 {[%clk 0:02:33.4]}
7. e5 {[%clk 0:02:56.1]} 7... Nc6 {[%clk 0:02:30.7]} 8. Qh4 {[%clk 0:02:55.6]}
8... bxa4 {[%clk 0:02:18.7]} 9. exf6 {[%clk 0:02:54.9]} 9... exf6 {[%clk
0:02:19]} 10. O-O {[%clk 0:02:54]} 10... Bg7 {[%clk 0:01:37.9]} 11. Qxa4 {[%clk
0:02:30.8]} 11... O-O {[%clk 0:01:37.1]} 12. Nc3 {[%clk 0:02:31.4]} 12... Bb7
{[%clk 0:01:34.1]} 13. Be3 {[%clk 0:02:25.1]} 13... Ne5 {[%clk 0:01:32.8]} 14.
Nd4 {[%clk 0:02:18.6]} 14... Ng4 {[%clk 0:01:22.8]} 15. Bf4 {[%clk 0:02:16]}
15... Qb6 {[%clk 0:01:12.4]} 16. Nb3 {[%clk 0:02:09.2]} 16... Ne5 {[%clk
0:00:58.4]} 17. Rad1 {[%clk 0:02:05.4]} 17... Rfd8 {[%clk 0:00:52.7]} 18. Nd5
{[%clk 0:01:56.3]} 18... Qc6 {[%clk 0:00:39]} 19. Qxc6 {[%clk 0:01:55.2]} 19...
Bxc6 {[%clk 0:00:33.1]} 20. Ne7+ {[%clk 0:01:53.1]} 20... Kh8 {[%clk 0:00:31.7]}
21. Nxc6 {[%clk 0:01:51.1]} 21... dxc6 {[%clk 0:00:32]} 22. h3 {[%clk
0:01:43.4]} 22... a5 {[%clk 0:00:31.4]} 23. Nc5 {[%clk 0:01:41.7]} 23... Rd5
{[%clk 0:00:26.3]} 24. Rxd5 {[%clk 0:01:37.9]} 24... cxd5 {[%clk 0:00:27.2]} 25.
c3 {[%clk 0:01:33]} 25... Rb8 {[%clk 0:00:26.1]} 26. b3 {[%clk 0:01:31.3]} 26...
Bf8 {[%clk 0:00:24]} 27. Na4 {[%clk 0:01:27.8]} 27... Rc8 {[%clk 0:00:20.4]} 28.
Rd1 {[%clk 0:01:26.2]} 28... Rd8 {[%clk 0:00:19.3]} 29. Be3 {[%clk 0:01:24.1]}
29... Nc6 {[%clk 0:00:17.7]} 30. Nb6 {[%clk 0:01:19.7]} 30... Ne7 {[%clk
0:00:14]} 31. Bc5 {[%clk 0:01:15.8]} 31... Kg7 {[%clk 0:00:03.4]} 32. Bxe7
{[%clk 0:01:14.7]} 32... Bxe7 {[%clk 0:00:04.3]} 33. Nxd5 {[%clk 0:01:14.4]}
33... Bd6 {[%clk 0:00:03.3]} 34. c4 {[%clk 0:01:12.9]} 34... Be5 {[%clk
0:00:02.8]} 35. Kf1 {[%clk 0:01:10.8]} 35... Rb8 {[%clk 0:00:02.5]} 36. Ke2
{[%clk 0:01:09.4]} 36... a4 {[%clk 0:00:03.3]} 37. b4 {[%clk 0:01:06.7]} 37...
a3 {[%clk 0:00:02.9]} 38. f4 {[%clk 0:01:05.9]} 38... Bd6 {[%clk 0:00:02.4]} 39.
c5 {[%clk 0:01:05.9]} 39... Bf8 {[%clk 0:00:01.1]} 40. Kd3 {[%clk 0:01:03.2]}
40... f5 {[%clk 0:00:02]} 41. Kc4 {[%clk 0:01:02.9]} 41... Rb7 {[%clk
0:00:02.9]} 42. b5 {[%clk 0:01:01.6]} 42... f6 {[%clk 0:00:03.8]} 43. c6 {[%clk
0:01:00.9]} 43... Rb8 {[%clk 0:00:03.6]} 44. c7 {[%clk 0:01:00.6]} 44... Rc8
{[%clk 0:00:04.1]} 45. b6 {[%clk 0:01:00.8]} 45... Bd6 {[%clk 0:00:03.8]} 46.
Kb5 {[%clk 0:01:00]} 46... Bxc7 {[%clk 0:00:03.1]} 47. bxc7 {[%clk 0:00:59.6]}
47... g5 {[%clk 0:00:01.6]} 48. Kc6 {[%clk 0:00:58.9]} 1-0